fUSD/lending_fUSD_20240713
["ID","MTS","AMOUNT","RATE_DAILY","PERIOD"]
[331940387,1720879832621,-152.74,0.0001379,3]
[331940388,1720879832630,-458.24,0.0001379,3]
[331940389,1720879832640,-500.0,0.00013799,2]
[331940390,1720879832649,-314.99653165,0.00013799,2]
[331940391,1720879832659,-500.0,0.00013799,2]
[331940392,1720879832667,-500.0,0.00013799,2]
[331940393,1720879832677,-594.95181028,0.00013799,2]
[331940394,1720879832686,-159.77421108,0.00013799,2]
[331940395,1720879832695,-642.47,0.00013799,2]
[331940396,1720879832705,-649.82,0.00013799,2]
[331940397,1720879832715,-14949.27186136,0.000138,2]
[331940398,1720879832726,-317886.6692734,0.000138,2]
[331940399,1720879832737,-3380.00047024,0.000138,2]
[331940403,1720879833518,-594.95042174,0.00013726,2]
[331940404,1720879833532,-105.04957826,0.00013726,2]
[331940405,1720879833542,-5590.45042174,0.000138,2]
[331940407,1720879833644,-3545.23594935,0.000138,2]
[331940408,1720879833656,-441.55013377,0.000138,2]
[331940429,1720879837889,-136521.81600755,0.000138,2]
[331940431,1720879837901,-117549.67867975,0.000138,2]
[331940434,1720879837912,-1175.03,0.000138,2]
[331940436,1720879837925,-493.86136824,0.000138,2]
[331940437,1720879838036,-630.37381688,0.000138,2]
[331940438,1720879838047,-40934.21669472,0.000138,2]
[331940439,1720879838059,-522.95955266,0.000138,2]
[331940440,1720879838085,-723643.1295144,0.000138,2]
[331940542,1720879839276,-490.1733676,0.000138,2]
[331940624,1720879840056,-1056.7785687,0.000138,2]
[331940626,1720879840072,-1273.216,0.000138,2]
[331940642,1720879840212,-1655.05436443,0.000138,2]
[331940645,1720879840229,-879.53341354,0.000138,2]
[331940705,1720879840962,-117093.60000005,0.000138,2]
[331940707,1720879840976,-917.21512431,0.000138,2]
[331940710,1720879840995,-1273.64220006,0.000138,2]
[331940810,1720879842895,-4928.47843353,0.000138,2]
[331940813,1720879842909,-25847.785215,0.000138,2]
[331940818,1720879844292,-8069.01661647,0.000138,2]
[331940819,1720879844306,-309.99999998,0.000138,2]
[331940820,1720879844317,-407098.03543296,0.000138,2]
[331940821,1720879844330,-1003.63343366,0.000138,2]
[331940822,1720879844347,-370.19267968,0.000138,2]
[331940831,1720879846073,-822.4471724,0.000138,2]
[331940838,1720879987530,669.82244777,0.00025,90]
[331940839,1720879993925,174.15,0.00010212,2]
[331940840,1720879995439,3000.0,0.00025,120]
[331940841,1720879998520,502.805749,0.00024999,120]
[331940842,1720880031015,669.82244777,0.00025,90]
[331940845,1720880098077,152.74,0.00010959,2]
[331940846,1720880104189,5424.14816431,0.00011199,2]
[331940847,1720880104217,19465.30529817,0.00011199,2]
[331940848,1720880108594,763.7,0.00010959,2]
[331940860,1720880142531,669.82244777,0.00025,90]
[331940870,1720880237532,669.82244777,0.00025,90]
[331940871,1720880240319,158.73,0.00010055,2]
[331940872,1720880243543,5605.08175338,0.00011199,2]
[331940873,1720880249115,718.56,0.00010679,2]
[331940876,1720880286235,9653.10315345,0.00010679,2]
[331940877,1720880289034,669.82244777,0.00025,90]
[331940879,1720880323232,13783.00193581,0.00011199,2]
[331940885,1720880401555,669.82244777,0.00025,90]
[331940888,1720880429939,20335.16391521,0.00011199,2]
[331940889,1720880437078,889.498354,0.00011199,2]
[331940890,1720880437561,669.82244777,0.00025,90]
[331940891,1720880441797,430.64178186,0.00011199,2]
[331940892,1720880450733,24876.41910629,0.00011199,2]
[331940893,1720880450758,211025.55611206,0.00011199,2]
[331940897,1720880499830,155.50356911,0.00011199,2]
[331940899,1720880502750,155.89259499,0.00011199,2]
[331940900,1720880507236,182.78597345,0.00011199,2]
[331940901,1720880509513,201.19,0.00010959,2]
[331940902,1720880509633,200.92761089,0.00011199,2]
[331940904,1720880520046,167.66,0.00010959,2]
[331940907,1720880527189,155.0,0.00011199,2]
[331940908,1720880527836,705.24017418,0.00011199,2]
[331940910,1720880530815,838.34,0.00010959,2]
[331940911,1720880542724,163.98672116,0.00011199,2]
[331940913,1720880544968,155.0,0.00011199,2]
[331940915,1720880547724,235901.97521835,0.00011199,2]
[331940916,1720880554418,271.39023854,0.00025,90]
[331940917,1720880556458,5013.4579674,0.00011199,2]
[331940918,1720880567736,155.92115813,0.00011199,2]
[331940920,1720880569864,319.84762846,0.00011199,2]
[331940922,1720880588863,155.0,0.00010959,2]
[331940923,1720880590021,5391.34637682,0.00011199,2]
[331940947,1720880677866,155.0,0.00011199,2]
[331940952,1720880682581,21221.82778737,0.00011199,2]
[331940954,1720880688313,366.11090361,0.00011199,2]
[331940957,1720880699314,6232.20628664,0.00011199,2]
[331940959,1720880702339,155.0,0.00011199,2]
[331940963,1720880720665,527.84420395,9e-05,2]
[331940964,1720880727966,4463.77591731,0.00011199,2]
[331940965,1720880737495,10876.78488563,0.00011,2]
[331940967,1720880755813,9633.56152584,6.94e-05,2]
[331940968,1720880759129,2833.41294772,0.00011199,2]
[331940969,1720880770365,155.0,0.00011,2]
[331940972,1720880788352,3393.15426371,0.00011199,2]
[331940973,1720880797556,3113.67612292,0.00011199,2]
[331940975,1720880807506,5391.34637682,0.00011199,2]
[331940976,1720880808525,155.06004581,0.00011199,2]
[331940977,1720880808668,163.31548965,0.00011199,2]
[331940978,1720880811932,450.95794745,0.00011199,2]
[331940981,1720880827574,3113.67612292,0.00011199,2]
[331940984,1720880836364,155.82431433,0.00011199,2]
[331940985,1720880837124,155.59164958,0.00011199,2]
[331940988,1720880842732,410.92574825,0.00011199,2]
[331940994,1720880852885,276.14588648,0.00011199,2]
[331940995,1720880859363,158.73,9.742e-05,2]
[331940998,1720880875364,216.44256872,0.00011199,2]
[331940999,1720880880661,703.86,0.00010246,2]
[331941001,1720880889108,530.36557167,0.00011199,2]
[331941003,1720880914374,201.5360962,0.00011199,2]
[331941005,1720880917531,155.12881484,0.00011199,2]
[331941014,1720880931598,-500.0,0.0001126,2]
[331941017,1720880931643,-900.0,0.0001126,2]
[331941020,1720880931685,-500.0,0.0001126,2]
[331941021,1720880931727,-411.7199301,0.0001126,2]
[331941022,1720880934455,266.64247316,0.00011199,2]
[331941024,1720880944945,2376.7571566,0.00011199,2]
[331941050,1720880950510,2401.83869291,0.00011199,2]
[331941055,1720880957366,216.2013929,0.00011199,2]
[331941056,1720880966160,1265.84016916,0.00011199,2]
[331941093,1720881002999,150.0,0.00011199,2]
[331941095,1720881003194,150.0,0.00011199,2]
[331941096,1720881003397,150.0,0.00011199,2]
[331941097,1720881003594,150.0,0.00011199,2]
[331941098,1720881003797,150.0,0.00011199,2]
[331941099,1720881004241,150.0,0.00011199,2]
[331941100,1720881004436,150.0,0.00011199,2]
[331941101,1720881004611,150.0,0.00011199,2]
[331941104,1720881006930,240.20327268,0.00011199,2]
[331941105,1720881023163,298.04742984,0.00011199,2]
[331941106,1720881029174,304.78291063,0.00011199,2]
[331941107,1720881030099,3113.67612292,0.00011199,2]
[331941113,1720881032223,-588.2800699,0.0001126,2]
[331941114,1720881032232,-800.0,0.0001126,2]
[331941115,1720881032243,-500.0,0.0001126,2]
[331941116,1720881032253,-500.0,0.0001126,2]
[331941117,1720881032263,-271.41966975,0.000118,2]
[331941118,1720881032273,-1000.0,0.00012082,2]
[331941119,1720881032282,-800.0,0.00012082,2]
[331941120,1720881032292,-23900.0,0.00012127,2]
[331941121,1720881032302,-155.14654103,0.00012273,2]
[331941122,1720881032312,-156.3465149,0.00012273,2]
[331941123,1720881032321,-155.0,0.00012273,2]
[331941124,1720881032331,-155.63127491,0.00012302,2]
[331941125,1720881032341,-279.37301093,0.00012302,2]
[331941126,1720881032350,-227.34202992,0.00012314,2]
[331941127,1720881032360,-156.22729772,0.00012314,2]
[331941128,1720881032370,-250.0,0.00012389,2]
[331941129,1720881032380,-250.0,0.00012398,2]
[331941130,1720881032390,-150.0,0.00012403,2]
[331941131,1720881032400,-299.99,0.00012403,2]
[331941132,1720881032410,-1000.0,0.00012424,2]
[331941133,1720881032419,-206.29,0.00012449,2]
[331941134,1720881032430,-150.0,0.00012472,2]
[331941136,1720881032439,-588.84694025,0.0001251,2]
[331941138,1720881032448,-703.86,0.0001251,2]
[331941140,1720881032458,-150.0,0.00012541,2]
[331941142,1720881032469,-633.48595566,0.0001259,2]
[331941144,1720881032481,-150.0,0.00012609,2]
[331941146,1720881032490,-150.0,0.00012678,2]
[331941147,1720881032500,-275.34,0.0001269,2]
[331941149,1720881032511,-150.0,0.00012747,2]
[331941150,1720881032521,-150.0,0.00012816,2]
[331941151,1720881032531,-150.0,0.00012885,2]
[331941152,1720881032540,-1000.0,0.00012904,2]
[331941153,1720881032552,-2747.13,0.00012904,2]
[331941154,1720881032562,-500.0,0.00012904,2]
[331941155,1720881032572,-800.0,0.00012904,2]
[331941156,1720881032581,-150.0,0.00012904,2]
[331941157,1720881032591,-150.0,0.00012954,2]
[331941158,1720881032600,-1250.0,0.00013,2]
[331941159,1720881032609,-20211.0,0.00013,2]
[331941160,1720881032619,-150.0,0.00013023,2]
[331941161,1720881032628,-979.55417132,0.0001305,2]
[331941162,1720881032638,-150.0,0.00013092,2]
[331941163,1720881032647,-300.0,0.000131,4]
[331941164,1720881032657,-2260.76217548,0.00013128,2]
[331941165,1720881032666,-227.87923756,0.00013128,2]
[331941166,1720881032676,-150.0,0.00013161,2]
[331941167,1720881032686,-700.0,0.000132,4]
[331941168,1720881032695,-150.0,0.0001323,2]
[331941169,1720881032704,-24503.56479154,0.00013283,2]
[331941170,1720881032714,-150.0,0.00013298,2]
[331941171,1720881032723,-1100.0,0.000133,4]
[331941172,1720881032733,-150.0,0.00013367,2]
[331941173,1720881032743,-1400.0,0.000134,4]
[331941174,1720881032753,-150.0,0.00013436,2]
[331941175,1720881032762,-6232.20628664,0.00013472,2]
[331941176,1720881032772,-1800.0,0.000135,4]
[331941177,1720881032783,-150.0,0.00013505,2]
[331941178,1720881032792,-834.36254336,0.00013543,2]
[331941179,1720881032802,-150.0,0.00013574,2]
[331941180,1720881032811,-946.08576899,0.00013574,2]
[331941181,1720881032821,-155.0,0.00013574,2]
[331941182,1720881032830,-155.0,0.00013574,2]
[331941183,1720881032839,-28685.18313975,0.0001358,2]
[331941184,1720881032848,-160.0513,0.000136,2]
[331941185,1720881032858,-679.8807,0.000136,2]
[331941186,1720881032867,-1480.00614404,0.000136,2]
[331941187,1720881032877,-300.0,0.000136,4]
[331941188,1720881032886,-1480.00614402,0.00013643,2]
[331941189,1720881032896,-150.0,0.00013643,2]
[331941190,1720881032905,-215.0031,0.0001366,2]
[331941191,1720881032915,-215.0031,0.0001366,2]
[331941192,1720881032925,-578.25858,0.0001366,2]
[331941193,1720881032934,-1480.00614402,0.00013686,2]
[331941194,1720881032943,-172.66418962,0.00013698,2]
[331941195,1720881032953,-848.86,0.00013698,2]
[331941196,1720881032963,-664.7,0.00013698,2]
[331941197,1720881032974,-500.0,0.00013698,2]
[331941198,1720881032984,-500.0,0.00013698,2]
[331941199,1720881032994,-1155.74,0.00013698,2]
[331941200,1720881033004,-500.0,0.00013698,2]
[331941201,1720881033014,-500.0,0.00013698,2]
[331941202,1720881033024,-500.0,0.00013698,2]
[331941203,1720881033034,-502.02238942,0.00013698,2]
[331941204,1720881033044,-501.81017493,0.00013698,2]
[331941205,1720881033053,-500.0,0.00013698,2]
[331941206,1720881033062,-539.16186053,0.00013698,2]
[331941207,1720881033072,-500.0,0.00013698,2]
[331941208,1720881033082,-3103.59,0.00013698,2]
[331941209,1720881033091,-500.0,0.00013698,2]
[331941210,1720881033101,-500.0,0.00013698,2]
[331941211,1720881033111,-611.61861616,0.00013698,2]
[331941212,1720881033120,-502.03086499,0.00013698,2]
[331941213,1720881033130,-495.34322151,0.00013699,2]
[331941214,1720881033141,-3556.26,0.00013699,2]
[331941215,1720881033151,-163.64,0.00013699,2]
[331941216,1720881033161,-250.0,0.00013699,2]
[331941217,1720881033170,-541.68,0.00013699,2]
[331941218,1720881033180,-650.29,0.00013699,2]
[331941219,1720881033190,-500.0,0.00013699,2]
[331941220,1720881033200,-500.0,0.00013699,2]
[331941221,1720881033210,-500.0,0.00013699,2]
[331941222,1720881033219,-500.0,0.00013699,2]
[331941223,1720881033229,-500.0,0.00013699,2]
[331941224,1720881033239,-500.0,0.00013699,2]
[331941225,1720881033250,-500.0,0.00013699,2]
[331941226,1720881033260,-511.98528204,0.00013699,2]
[331941227,1720881033269,-500.0,0.00013699,2]
[331941228,1720881033279,-500.0,0.00013699,2]
[331941229,1720881033288,-242.52584011,0.00013699,2]
[331941230,1720881033298,-522.10654427,0.00013699,2]
[331941231,1720881033308,-569.41425997,0.00013699,2]
[331941232,1720881033317,-500.0,0.00013699,2]
[331941233,1720881033327,-502.97505826,0.00013699,2]
[331941234,1720881033336,-500.0,0.00013699,2]
[331941235,1720881033347,-551.82,0.00013699,2]
[331941236,1720881033356,-580.57232225,0.00013699,2]
[331941237,1720881033366,-508.29633367,0.00013699,2]
[331941238,1720881033376,-547.74,0.00013699,2]
[331941239,1720881033385,-996.81,0.00013699,2]
[331941240,1720881033394,-500.0,0.00013699,2]
[331941241,1720881033404,-506.22020978,0.00013699,2]
[331941242,1720881033414,-500.0,0.00013699,2]
[331941243,1720881033423,-500.0,0.00013699,2]
[331941244,1720881033432,-500.0,0.00013699,2]
[331941245,1720881033442,-548.73,0.00013699,2]
[331941246,1720881033452,-500.0,0.00013699,2]
[331941247,1720881033461,-500.0,0.00013699,2]
[331941248,1720881033472,-500.0,0.00013699,2]
[331941249,1720881033482,-633.96,0.00013699,2]
[331941250,1720881033491,-500.0,0.00013699,2]
[331941251,1720881033502,-500.0,0.00013699,2]
[331941252,1720881033513,-500.0,0.00013699,2]
[331941253,1720881033522,-527.43829505,0.00013699,2]
[331941254,1720881033532,-500.0,0.00013699,2]
[331941255,1720881033543,-500.0,0.00013699,2]
[331941256,1720881033552,-500.0,0.00013699,2]
[331941257,1720881033562,-500.0,0.00013699,2]
[331941258,1720881033572,-500.0,0.00013699,2]
[331941259,1720881033582,-500.0,0.00013699,2]
[331941260,1720881033591,-570.23,0.00013699,2]
[331941261,1720881033601,-500.0,0.00013699,2]
[331941262,1720881033610,-500.0,0.00013699,2]
[331941263,1720881033785,-515.19982377,0.00013699,2]
[331941264,1720881033796,-510.43515101,0.00013699,2]
[331941265,1720881033805,-500.0,0.00013699,2]
[331941266,1720881033814,-510.1905651,0.00013699,2]
[331941267,1720881033824,-500.0,0.00013699,2]
[331941268,1720881033833,-500.0,0.00013699,2]
[331941269,1720881033843,-500.0,0.00013699,2]
[331941270,1720881033852,-500.0,0.00013699,2]
[331941271,1720881033861,-500.0,0.00013699,2]
[331941272,1720881033871,-507.456879,0.00013699,2]
[331941273,1720881033880,-551.62343678,0.00013699,2]
[331941274,1720881033889,-500.0,0.00013699,2]
[331941275,1720881033898,-844.04,0.00013699,2]
[331941276,1720881033907,-555.45523538,0.00013699,2]
[331941277,1720881033916,-500.0,0.00013699,2]
[331941278,1720881033926,-500.0,0.00013699,2]
[331941279,1720881033935,-409.71544705,0.00013699,2]
[331941280,1720881033944,-500.0,0.00013699,2]
[331941281,1720881033953,-500.0,0.00013699,2]
[331941282,1720881033962,-500.0,0.00013699,2]
[331941283,1720881033971,-500.0,0.00013699,2]
[331941284,1720881033980,-519.88140494,0.00013699,2]
[331941285,1720881033990,-500.0,0.00013699,2]
[331941286,1720881033999,-459.97303539,0.00013699,2]
[331941287,1720881034009,-170.95340912,0.00013699,2]
[331941288,1720881034018,-512.5651136,0.00013699,2]
[331941289,1720881034027,-503.45079227,0.00013699,2]
[331941290,1720881034036,-615.7,0.00013699,2]
[331941291,1720881034045,-500.0,0.00013699,2]
[331941292,1720881034055,-406.60285565,0.00013699,2]
[331941293,1720881034064,-500.0,0.00013699,2]
[331941294,1720881034074,-285.37049916,0.00013699,2]
[331941295,1720881034083,-770.92,0.00013699,2]
[331941296,1720881034093,-500.0,0.00013699,2]
[331941297,1720881034102,-500.0,0.00013699,2]
[331941298,1720881034111,-500.0,0.00013699,2]
[331941299,1720881034120,-736.4,0.00013699,2]
[331941300,1720881034130,-500.0,0.00013699,2]
[331941301,1720881034139,-500.0,0.00013699,2]
[331941302,1720881034148,-500.0,0.00013699,2]
[331941303,1720881034157,-500.0,0.00013699,2]
[331941304,1720881034166,-521.17,0.00013699,2]
[331941305,1720881034176,-916.01,0.00013699,2]
[331941306,1720881034185,-447.13647676,0.00013699,2]
[331941307,1720881034194,-500.0,0.00013699,2]
[331941308,1720881034204,-1830.0,0.000137,2]
[331941309,1720881034213,-500.0,0.000137,2]
[331941310,1720881034222,-6950.4756,0.000137,2]
[331941311,1720881034231,-245000.0,0.000137,2]
[331941312,1720881034240,-714.51605873,0.000137,2]
[331941313,1720881034251,-160.13713916,0.000137,2]
[331941314,1720881034260,-300.0,0.000137,5]
[331941315,1720881034269,-5050.7018122,0.000137,2]
[331941316,1720881034278,-231.90170231,0.000137,2]
[331941317,1720881034288,-659.5413516,0.000137,2]
[331941318,1720881034297,-150.0,0.00013712,2]
[331941319,1720881034306,-1000.0,0.00013726,2]
[331941320,1720881034315,-800.0,0.00013726,2]
[331941321,1720881034325,-1480.00614402,0.00013729,2]
[331941322,1720881034334,-150.0,0.00013733,2]
[331941323,1720881034343,-714.51605871,0.00013733,2]
[331941324,1720881034353,-1136.48062385,0.00013736,2]
[331941325,1720881034362,-150.0,0.00013738,2]
[331941326,1720881034371,-848.86,0.00013753,2]
[331941327,1720881034380,-664.7,0.00013753,2]
[331941328,1720881034389,-500.0,0.00013753,2]
[331941329,1720881034399,-500.0,0.00013753,2]
[331941330,1720881034408,-1155.74,0.00013753,2]
[331941331,1720881034417,-500.0,0.00013753,2]
[331941332,1720881034426,-500.0,0.00013753,2]
[331941333,1720881034436,-500.0,0.00013753,2]
[331941334,1720881034446,-238.41997738,0.00013753,2]
[331941335,1720881034455,-295.24573341,0.00013753,2]
[331941336,1720881034464,-3103.59,0.00013753,2]
[331941337,1720881034477,-500.0,0.00013753,2]
[331941338,1720881034486,-500.0,0.00013753,2]
[331941339,1720881034496,-495.34322151,0.00013753,2]
[331941340,1720881034506,-541.68,0.00013754,2]
[331941341,1720881034517,-650.29,0.00013754,2]
[331941342,1720881034526,-500.0,0.00013754,2]
[331941343,1720881034535,-500.0,0.00013754,2]
[331941344,1720881034547,-252.41891872,0.00013754,2]
[331941345,1720881034556,-500.0,0.00013754,2]
[331941346,1720881034566,-500.0,0.00013754,2]
[331941347,1720881034575,-212.09,0.00013754,2]
[331941348,1720881034584,-500.0,0.00013754,2]
[331941349,1720881034593,-500.0,0.00013754,2]
[331941350,1720881034602,-500.0,0.00013754,2]
[331941351,1720881034612,-497.12324634,0.00013754,2]
[331941352,1720881034621,-551.82,0.00013754,2]
[331941353,1720881034631,-547.74,0.00013754,2]
[331941354,1720881034640,-996.81,0.00013754,2]
[331941355,1720881034649,-500.0,0.00013754,2]
[331941356,1720881034658,-500.0,0.00013754,2]
[331941357,1720881034667,-500.0,0.00013754,2]
[331941358,1720881034677,-548.73,0.00013754,2]
[331941359,1720881034687,-500.0,0.00013754,2]
[331941360,1720881034696,-500.0,0.00013754,2]
[331941361,1720881034705,-500.0,0.00013754,2]
[331941362,1720881034714,-633.96,0.00013754,2]
[331941363,1720881034723,-500.0,0.00013754,2]
[331941364,1720881034732,-500.0,0.00013754,2]
[331941365,1720881034742,-624.17504532,0.00013754,2]
[331941366,1720881034752,-299.77772228,0.00013754,2]
[331941367,1720881034761,-500.0,0.00013754,2]
[331941368,1720881034771,-500.0,0.00013754,2]
[331941369,1720881034784,-500.0,0.00013754,2]
[331941370,1720881034794,-358.25292923,0.00013754,2]
[331941371,1720881034803,-500.0,0.00013754,2]
[331941372,1720881034812,-570.23,0.00013754,2]
[331941373,1720881034822,-500.0,0.00013754,2]
[331941374,1720881034831,-500.0,0.00013754,2]
[331941375,1720881034840,-500.0,0.00013754,2]
[331941376,1720881034850,-500.0,0.00013754,2]
[331941377,1720881034859,-500.0,0.00013754,2]
[331941378,1720881034869,-500.0,0.00013754,2]
[331941379,1720881034879,-258.08740531,0.00013754,2]
[331941380,1720881034890,-500.0,0.00013754,2]
[331941381,1720881034900,-500.0,0.00013754,2]
[331941382,1720881034910,-844.04,0.00013754,2]
[331941383,1720881034920,-408.4598564,0.00013754,2]
[331941384,1720881034929,-500.0,0.00013754,2]
[331941385,1720881034938,-500.0,0.00013754,2]
[331941386,1720881034948,-500.0,0.00013754,2]
[331941387,1720881034957,-533.79,0.00013754,2]
[331941388,1720881034967,-500.0,0.00013754,2]
[331941389,1720881034977,-500.0,0.00013754,2]
[331941390,1720881034989,-615.7,0.00013754,2]
[331941391,1720881034999,-169.53027427,0.00013754,2]
[331941392,1720881035009,-500.0,0.00013754,2]
[331941393,1720881035018,-770.92,0.00013754,2]
[331941394,1720881035027,-500.0,0.00013754,2]
[331941395,1720881035037,-500.0,0.00013754,2]
[331941396,1720881035046,-500.0,0.00013754,2]
[331941397,1720881035056,-736.4,0.00013754,2]
[331941398,1720881035065,-500.0,0.00013754,2]
[331941399,1720881035074,-500.0,0.00013754,2]
[331941400,1720881035083,-500.0,0.00013754,2]
[331941401,1720881035094,-500.0,0.00013754,2]
[331941402,1720881035104,-521.17,0.00013754,2]
[331941403,1720881035115,-916.01,0.00013754,2]
[331941404,1720881035126,-1929.38468246,0.00013754,2]
[331941405,1720881035136,-150.0,0.00013757,2]
[331941406,1720881035147,-714.51605871,0.00013767,2]
[331941407,1720881035158,-1480.00614402,0.00013771,2]
[331941408,1720881035167,-151.50046949,0.00013781,2]
[331941409,1720881035176,-150.0,0.00013787,2]
[331941410,1720881035185,-205.09279942,0.0001379,2]
[331941411,1720881035195,-262.93426632,0.0001379,2]
[331941412,1720881035204,-262.93426629,0.0001379,2]
[331941413,1720881035213,-262.93426629,0.0001379,2]
[331941414,1720881035222,-262.93426629,0.0001379,2]
[331941415,1720881035231,-262.93426629,0.0001379,2]
[331941416,1720881035241,-262.93426629,0.0001379,2]
[331941417,1720881035250,-262.93426629,0.0001379,2]
[331941418,1720881035259,-577.88682975,0.00013799,2]
[331941419,1720881035268,-500.0,0.00013799,2]
[331941420,1720881035278,-500.0,0.00013799,2]
[331941421,1720881035287,-2630.74,0.00013799,2]
[331941422,1720881035296,-609.91198666,0.00013799,2]
[331941423,1720881035305,-500.0,0.00013799,2]
[331941424,1720881035314,-159.77421102,0.00013799,2]
[331941425,1720881035323,-355430.63802803,0.000138,2]
[331941426,1720881035367,-2510.41690304,0.000138,2]
[331941427,1720881035378,-788.11223089,0.000138,2]
[331941428,1720881035389,-3299.21382241,0.000138,2]
[331941435,1720881038048,-227.34202992,0.00012302,2]
[331941437,1720881038058,-56.59797008,0.00013699,2]
[331941438,1720881038070,-2788.36202992,0.00013699,2]
[331941439,1720881038079,-972.93043408,0.000137,2]
[331941440,1720881038091,-687.06956592,0.000137,2]
[331941441,1720881038100,-498.27332182,0.000137,2]
[331941442,1720881038111,-701.72667818,0.000137,2]
[331941443,1720881038121,-2844.96,0.00013754,2]
[331941444,1720881038130,-4111.96084472,0.000138,2]
[331941445,1720881038204,-858.74623956,0.000138,2]
[331941446,1720881038237,-1622.99,0.000138,2]
[331941447,1720881038249,-285.375,0.000138,2]
[331941448,1720881038278,-1214.80253227,0.000138,2]
[331941449,1720881038408,-10424.6816,0.000138,2]
[331941450,1720881038531,-587718.24307029,0.000138,2]
[331941451,1720881038546,-120334.29941382,0.000138,2]
[331941618,1720881040133,-382.60523184,0.000138,2]
[331941620,1720881040146,-2550.50257882,0.000138,2]
[331941624,1720881040172,-464.64,0.000138,2]
[331941673,1720881040744,-1983.1221784,0.000138,2]
[331941688,1720881040879,-59841.20793247,0.000138,2]
[331941698,1720881040974,-131454.33764176,0.000138,2]
[331941702,1720881041004,-2256.33146258,0.000138,2]
[331941914,1720881043146,-280.06321989,0.00013698,2]
[331941916,1720881043156,-596.1,0.00013699,2]
[331941918,1720881043165,-786.24149411,0.000137,2]
[331941920,1720881043177,-879.75850589,0.000137,2]
[331941922,1720881043187,-387.77779178,0.00013754,2]
[331941925,1720881043206,-216.04818389,0.00013699,2]
[331941927,1720881043216,-208.32220822,0.00013754,2]
[331941929,1720881043226,-2405.21665584,0.000138,2]
[331941931,1720881043238,-681.73948795,0.000138,2]
[331941933,1720881043248,-500.0,0.000138,2]
[331941935,1720881043262,-571.48088153,0.000138,2]
[331941937,1720881043274,-4135.607814,0.000138,2]
[331941940,1720881043291,-498.09121075,0.000138,2]
[331941942,1720881043302,-298.72,0.000138,2]
[331941945,1720881043320,-2684.01404436,0.000138,2]
[331941948,1720881043332,-5658.86,0.000138,2]
[331941950,1720881043343,-1913.60066779,0.000138,2]
[331941952,1720881043354,-782.22733,0.000138,2]
[331941954,1720881043366,-495.87980047,0.000138,2]
[331941956,1720881043378,-428.51396094,0.000138,2]
[331941959,1720881043399,-685511.65566904,0.000138,2]
[331941961,1720881043409,-714.51605871,0.000138,2]
[331941963,1720881043419,-300.0,0.000138,5]
[331941965,1720881043429,-9811.98001905,0.000138,3]
[331941967,1720881043439,-1728.96185,0.000138,2]
[331941970,1720881043449,-5050.70181219,0.000138,2]
[331941972,1720881043459,-659.54135158,0.000138,2]
[331941974,1720881043471,-173.49,0.00013804,2]
[331941976,1720881043487,-262.93426629,0.00013805,2]
[331941978,1720881043496,-848.86,0.00013808,2]
[331941979,1720881043508,-664.7,0.00013808,2]
[331941981,1720881043519,-500.0,0.00013808,2]
[331941983,1720881043529,-500.0,0.00013808,2]
[331941986,1720881043538,-1155.74,0.00013808,2]
[331941987,1720881043548,-500.0,0.00013808,2]